[Event "*** SCC Grand Prix: Titled Tuesday Blitz"]
[Site "Chess.com"]
[Date "2020.10.06"]
[Round "8"]
[White "CM_rui"]
[Black "dominikaf"]
[Result "1-0"]
[WhiteElo "2366"]
[BlackElo "2252"]
[TimeControl "180+1"]
[EndTime "11:36:18 PDT"]
[Termination "CM_rui won on time"]

1. e4 {[%clk 0:03:00.9]} 1... e5 {[%clk 0:02:59.7]} 2. Nf3 {[%clk 0:03:00.2]}
2... Nc6 {[%clk 0:03:00.1]} 3. Bb5 {[%clk 0:02:59.6]} 3... a6 {[%clk 0:02:59.4]}
4. Ba4 {[%clk 0:02:59.8]} 4... Nf6 {[%clk 0:02:58.6]} 5. O-O {[%clk 0:02:59]}
5... Be7 {[%clk 0:02:54.7]} 6. Re1 {[%clk 0:02:59.1]} 6... b5 {[%clk 0:02:55.2]}
7. Bb3 {[%clk 0:02:59.6]} 7... O-O {[%clk 0:02:56.1]} 8. h3 {[%clk 0:02:57.5]}
8... Bb7 {[%clk 0:02:54.7]} 9. c3 {[%clk 0:02:57.1]} 9... d5 {[%clk 0:02:55.1]}
10. exd5 {[%clk 0:02:55.1]} 10... Nxd5 {[%clk 0:02:56]} 11. Nxe5 {[%clk
0:02:54.5]} 11... Nxe5 {[%clk 0:02:56.9]} 12. Rxe5 {[%clk 0:02:55.4]} 12... Qd6
{[%clk 0:02:55.9]} 13. d4 {[%clk 0:02:51.1]} 13... c5 {[%clk 0:02:38.6]} 14. Qe2
{[%clk 0:02:39.9]} 14... Bf6 {[%clk 0:02:36.2]} 15. Re4 {[%clk 0:02:22.5]} 15...
cxd4 {[%clk 0:02:08.5]} 16. cxd4 {[%clk 0:02:23.4]} 16... Nb4 {[%clk 0:02:06.3]}
17. Rg4 {[%clk 0:02:06.2]} 17... Rae8 {[%clk 0:02:01.4]} 18. Be3 {[%clk
0:02:04.7]} 18... Bxd4 {[%clk 0:01:51.5]} 19. Nd2 {[%clk 0:01:38.6]} 19... Bxb2
{[%clk 0:00:56.4]} 20. Rd1 {[%clk 0:01:30.5]} 20... Qe7 {[%clk 0:00:40.6]} 21.
Nf3 {[%clk 0:01:19.8]} 21... Bf6 {[%clk 0:00:32]} 22. a3 {[%clk 0:01:13.1]}
22... Nc6 {[%clk 0:00:27.8]} 23. Qa2 {[%clk 0:01:09.4]} 23... Ne5 {[%clk
0:00:15.4]} 24. Nxe5 {[%clk 0:01:06]} 24... Bxe5 {[%clk 0:00:15.7]} 25. Rc1
{[%clk 0:00:48.6]} 25... h5 {[%clk 0:00:12.9]} 26. Rg5 {[%clk 0:00:44.5]} 26...
Bf6 {[%clk 0:00:06.4]} 27. Rxh5 {[%clk 0:00:42.6]} 27... Qe4 {[%clk 0:00:03.5]}
28. Bd5 {[%clk 0:00:34]} 28... Bxd5 {[%clk 0:00:03.8]} 29. Rxd5 {[%clk 0:00:34]}
29... Re5 {[%clk 0:00:03.2]} 30. Rd7 {[%clk 0:00:25.7]} 30... Rf5 {[%clk
0:00:01]} 31. Rcc7 {[%clk 0:00:14.1]} 31... Qe6 {[%clk 0:00:01.4]} 32. Qxe6
{[%clk 0:00:10.2]} 32... fxe6 {[%clk 0:00:02.3]} 33. Bc5 {[%clk 0:00:09.3]}
33... Be5 {[%clk 0:00:02.6]} 34. Ra7 {[%clk 0:00:07.2]} 34... R8f7 {[%clk
0:00:01.9]} 35. Rxf7 {[%clk 0:00:06.1]} 35... Rxf7 {[%clk 0:00:02.8]} 36. Rxa6
{[%clk 0:00:06.7]} 36... Rf5 {[%clk 0:00:01.3]} 37. Rxe6 {[%clk 0:00:06.8]}
37... Bb2 {[%clk 0:00:01.4]} 38. Re8+ {[%clk 0:00:06.4]} 38... Kf7 {[%clk
0:00:01.5]} 39. Rf8+ {[%clk 0:00:07]} 39... Kg6 {[%clk 0:00:01.4]} 40. Rxf5
{[%clk 0:00:07.9]} 40... Kxf5 {[%clk 0:00:02.3]} 41. Bb4 {[%clk 0:00:08.4]}
41... Ke4 {[%clk 0:00:02.2]} 42. Kf1 {[%clk 0:00:09]} 42... g6 {[%clk
0:00:02.4]} 43. Ke2 {[%clk 0:00:09.3]} 43... Kd4 {[%clk 0:00:03]} 44. Kd2 {[%clk
0:00:09.3]} 44... Kc4 {[%clk 0:00:03.5]} 45. Ke3 {[%clk 0:00:08.6]} 45... Bd4+
{[%clk 0:00:03.4]} 46. Ke2 {[%clk 0:00:07.7]} 46... Kb3 {[%clk 0:00:02.9]} 47.
f4 {[%clk 0:00:07.7]} 47... Bb2 {[%clk 0:00:02.5]} 48. g4 {[%clk 0:00:08]} 48...
Bxa3 {[%clk 0:00:02.9]} 49. Bd2 {[%clk 0:00:06.4]} 49... Bb2 {[%clk 0:00:02.3]}
50. Kd3 {[%clk 0:00:06.7]} 50... Bf6 {[%clk 0:00:01.9]} 51. g5 {[%clk
0:00:04.9]} 51... Bg7 {[%clk 0:00:01.6]} 52. Ke4 {[%clk 0:00:05.2]} 52... Kc2
{[%clk 0:00:01]} 53. Bb4 {[%clk 0:00:04.8]} 1-0

[Event "*** SCC Grand Prix: Titled Tuesday Blitz"]
[Site "Chess.com"]
[Date "2020.10.06"]
[Round "8"]
[White "queen_iryna"]
[Black "MPGM"]
[Result "1-0"]
[WhiteElo "2319"]
[BlackElo "2443"]
[TimeControl "180+1"]
[EndTime "11:36:20 PDT"]
[Termination "queen_iryna won by resignation"]

1. e4 {[%clk 0:02:52.8]} 1... e5 {[%clk 0:02:56.4]} 2. Nf3 {[%clk 0:02:52.2]}
2... Nc6 {[%clk 0:02:56.1]} 3. c3 {[%clk 0:02:49.8]} 3... Nf6 {[%clk 0:02:51.6]}
4. d3 {[%clk 0:02:49.4]} 4... g6 {[%clk 0:02:46.3]} 5. Be2 {[%clk 0:02:48.7]}
5... Bg7 {[%clk 0:02:46.9]} 6. O-O {[%clk 0:02:48.9]} 6... O-O {[%clk
0:02:47.4]} 7. Nbd2 {[%clk 0:02:48.4]} 7... d6 {[%clk 0:02:47.4]} 8. b4 {[%clk
0:02:41.1]} 8... h6 {[%clk 0:02:41.4]} 9. Nc4 {[%clk 0:02:31]} 9... Nh7 {[%clk
0:02:28.2]} 10. Bd2 {[%clk 0:02:16.3]} 10... Ng5 {[%clk 0:02:26.5]} 11. Nxg5
{[%clk 0:02:15.6]} 11... hxg5 {[%clk 0:02:26.4]} 12. Qc1 {[%clk 0:02:13.7]}
12... Bf6 {[%clk 0:02:19.3]} 13. Ne3 {[%clk 0:02:12.4]} 13... Ne7 {[%clk
0:02:07.1]} 14. Bg4 {[%clk 0:01:53.8]} 14... Kg7 {[%clk 0:01:58.4]} 15. Bxc8
{[%clk 0:01:52.3]} 15... Nxc8 {[%clk 0:01:57.4]} 16. Nd5 {[%clk 0:01:51.7]}
16... Rh8 {[%clk 0:01:43.8]} 17. Nxf6 {[%clk 0:01:51.1]} 17... Qxf6 {[%clk
0:01:44.7]} 18. Bxg5 {[%clk 0:01:50.7]} 18... Qe6 {[%clk 0:01:45.4]} 19. Be3
{[%clk 0:01:41.9]} 19... f5 {[%clk 0:01:32.7]} 20. exf5 {[%clk 0:01:38.3]} 20...
Qxf5 {[%clk 0:01:27.5]} 21. f4 {[%clk 0:01:35.6]} 21... Qxd3 {[%clk 0:01:25.5]}
22. fxe5 {[%clk 0:01:34.8]} 22... dxe5 {[%clk 0:01:25.6]} 23. Bg5 {[%clk
0:01:30.2]} 23... Rh5 {[%clk 0:01:13.2]} 24. Rf3 {[%clk 0:01:11.5]} 24... Qc4
{[%clk 0:01:05.1]} 25. Bf6+ {[%clk 0:01:03.7]} 25... Kh7 {[%clk 0:00:59.9]} 26.
Qf1 {[%clk 0:00:37.5]} 26... Qxf1+ {[%clk 0:00:57.3]} 27. Raxf1 {[%clk
0:00:38.4]} 27... Nd6 {[%clk 0:00:57.2]} 28. g4 {[%clk 0:00:38.3]} 28... Rh6
{[%clk 0:00:52.3]} 29. Bxe5 {[%clk 0:00:38.1]} 29... g5 {[%clk 0:00:44.7]} 30.
Rf6 {[%clk 0:00:30.2]} 30... Re8 {[%clk 0:00:33.6]} 31. Rxh6+ {[%clk 0:00:27.4]}
31... Kxh6 {[%clk 0:00:31.9]} 32. Bxd6 {[%clk 0:00:28]} 32... cxd6 {[%clk
0:00:32.3]} 33. Rf6+ {[%clk 0:00:28.6]} 33... Kg7 {[%clk 0:00:32.6]} 34. Rxd6
{[%clk 0:00:29.5]} 34... Re2 {[%clk 0:00:20.9]} 35. Rd7+ {[%clk 0:00:29.1]}
35... Kf6 {[%clk 0:00:19.5]} 36. Rxb7 {[%clk 0:00:28.9]} 36... Rxa2 {[%clk
0:00:20.1]} 37. c4 {[%clk 0:00:27.2]} 37... Ke5 {[%clk 0:00:20.4]} 38. c5 {[%clk
0:00:26.4]} 38... Kf4 {[%clk 0:00:20.7]} 39. c6 {[%clk 0:00:24.3]} 39... Rc2
{[%clk 0:00:18.9]} 40. b5 {[%clk 0:00:22.5]} 40... a6 {[%clk 0:00:15.8]} 41.
bxa6 {[%clk 0:00:13.6]} 41... Rxc6 {[%clk 0:00:16.1]} 42. Rb4+ {[%clk
0:00:13.7]} 42... Kf3 {[%clk 0:00:15.6]} 43. Rb3+ {[%clk 0:00:13.9]} 43... Kxg4
{[%clk 0:00:15.5]} 44. Ra3 {[%clk 0:00:14]} 44... Rc1+ {[%clk 0:00:12.9]} 45.
Kf2 {[%clk 0:00:13.5]} 45... Rc2+ {[%clk 0:00:13.8]} 46. Ke3 {[%clk 0:00:13.2]}
46... Rc8 {[%clk 0:00:12]} 47. a7 {[%clk 0:00:12.9]} 47... Ra8 {[%clk
0:00:12.4]} 48. Ke4 {[%clk 0:00:13.2]} 48... Kh4 {[%clk 0:00:10.6]} 49. Kd5
{[%clk 0:00:13.1]} 49... g4 {[%clk 0:00:10.4]} 50. Kc6 {[%clk 0:00:13]} 50...
Rg8 {[%clk 0:00:06.9]} 51. Kb7 {[%clk 0:00:12.2]} 51... Rg7+ {[%clk 0:00:07.1]}
52. Kb6 {[%clk 0:00:11.9]} 52... Rg6+ {[%clk 0:00:07.5]} 53. Kb5 {[%clk
0:00:11.3]} 53... Rg5+ {[%clk 0:00:08]} 54. Kc4 {[%clk 0:00:09.9]} 54... Rg8
{[%clk 0:00:08.4]} 55. a8=Q {[%clk 0:00:08.9]} 55... Rxa8 {[%clk 0:00:09]} 56.
Rxa8 {[%clk 0:00:09]} 56... Kh3 {[%clk 0:00:09.9]} 57. Rh8+ {[%clk 0:00:09]} 1-0

[Event "*** SCC Grand Prix: Titled Tuesday Blitz"]
[Site "Chess.com"]
[Date "2020.10.06"]
[Round "8"]
[White "vovachesss"]
[Black "GukeshDommaraju"]
[Result "1-0"]
[WhiteElo "2690"]
[BlackElo "2789"]
[TimeControl "180+1"]
[EndTime "11:36:23 PDT"]
[Termination "vovachesss won by resignation"]

1. Nf3 {[%clk 0:03:00.9]} 1... Nf6 {[%clk 0:02:56.6]} 2. b3 {[%clk 0:02:59.9]}
2... g6 {[%clk 0:02:55.2]} 3. Bb2 {[%clk 0:02:59.9]} 3... Bg7 {[%clk 0:02:55.6]}
4. d4 {[%clk 0:03:00.1]} 4... O-O {[%clk 0:02:55.9]} 5. e3 {[%clk 0:03:01]} 5...
d6 {[%clk 0:02:54.6]} 6. Be2 {[%clk 0:03:01.9]} 6... Nbd7 {[%clk 0:02:54.2]} 7.
O-O {[%clk 0:03:02.5]} 7... b6 {[%clk 0:02:54.3]} 8. c4 {[%clk 0:03:00.1]} 8...
Bb7 {[%clk 0:02:54.6]} 9. Nc3 {[%clk 0:02:59.8]} 9... Ne4 {[%clk 0:02:54.6]} 10.
Qc2 {[%clk 0:02:55.7]} 10... Nxc3 {[%clk 0:02:46.1]} 11. Bxc3 {[%clk 0:02:54.7]}
11... e5 {[%clk 0:02:43.6]} 12. dxe5 {[%clk 0:02:46.4]} 12... dxe5 {[%clk
0:02:38.1]} 13. Rad1 {[%clk 0:02:45.7]} 13... Qe7 {[%clk 0:02:38.1]} 14. Rd2
{[%clk 0:02:31.8]} 14... a5 {[%clk 0:02:27.2]} 15. Rfd1 {[%clk 0:02:30.8]} 15...
Nc5 {[%clk 0:02:26.9]} 16. b4 {[%clk 0:01:52.2]} 16... Be4 {[%clk 0:02:13.4]}
17. Qc1 {[%clk 0:01:40.6]} 17... axb4 {[%clk 0:01:36.5]} 18. Bxb4 {[%clk
0:01:41.5]} 18... Rfd8 {[%clk 0:01:36.1]} 19. Bxc5 {[%clk 0:01:31.7]} 19... bxc5
{[%clk 0:01:35.7]} 20. Rxd8+ {[%clk 0:01:32.2]} 20... Rxd8 {[%clk 0:01:35.5]}
21. Rxd8+ {[%clk 0:01:33]} 21... Qxd8 {[%clk 0:01:36.4]} 22. h3 {[%clk
0:01:24.1]} 22... Qa8 {[%clk 0:01:35.4]} 23. Qd2 {[%clk 0:01:07.5]} 23... h6
{[%clk 0:01:32.4]} 24. Ne1 {[%clk 0:01:04.1]} 24... Bc6 {[%clk 0:01:30.3]} 25.
Bd1 {[%clk 0:00:40.7]} 25... e4 {[%clk 0:01:27]} 26. Bb3 {[%clk 0:00:37]} 26...
Be5 {[%clk 0:01:26.4]} 27. Nc2 {[%clk 0:00:34.6]} 27... Bd6 {[%clk 0:01:24.8]}
28. Qc1 {[%clk 0:00:33.4]} 28... Qd8 {[%clk 0:01:17.1]} 29. Na3 {[%clk
0:00:32.3]} 29... Qg5 {[%clk 0:01:05.7]} 30. Nb5 {[%clk 0:00:32.1]} 30... Be5
{[%clk 0:01:05.8]} 31. Qd1 {[%clk 0:00:24.8]} 31... Kg7 {[%clk 0:01:02.8]} 32.
Na7 {[%clk 0:00:21.5]} 32... Bb7 {[%clk 0:00:56.5]} 33. Ba4 {[%clk 0:00:22.4]}
33... Bd6 {[%clk 0:00:53.3]} 34. Bc6 {[%clk 0:00:20.7]} 34... Bxc6 {[%clk
0:00:42.7]} 35. Nxc6 {[%clk 0:00:20.5]} 35... Qf6 {[%clk 0:00:30]} 36. g3 {[%clk
0:00:12]} 36... Qc3 {[%clk 0:00:26.3]} 37. Qd5 {[%clk 0:00:10.5]} 37... f5
{[%clk 0:00:20.3]} 38. Nd8 {[%clk 0:00:09.9]} 38... Qf6 {[%clk 0:00:13.7]} 39.
Ne6+ {[%clk 0:00:09.6]} 39... Kh7 {[%clk 0:00:12.5]} 40. Nxc5 {[%clk 0:00:09.2]}
40... h5 {[%clk 0:00:09.2]} 41. h4 {[%clk 0:00:09.1]} 41... Qa1+ {[%clk
0:00:08.5]} 42. Kg2 {[%clk 0:00:09.3]} 42... Qxa2 {[%clk 0:00:08.4]} 43. Qf7+
{[%clk 0:00:09]} 43... Kh6 {[%clk 0:00:08.2]} 44. Ne6 {[%clk 0:00:09.5]} 44...
Qb2 {[%clk 0:00:08.6]} 45. Ng5 {[%clk 0:00:03.3]} 45... Qg7 {[%clk 0:00:07.7]}
46. Qe8 {[%clk 0:00:02.8]} 46... Be7 {[%clk 0:00:08.2]} 47. Nf7+ {[%clk
0:00:02.9]} 47... Kh7 {[%clk 0:00:06.9]} 48. Qxe7 {[%clk 0:00:03.4]} 48... c5
{[%clk 0:00:06.7]} 49. Ng5+ {[%clk 0:00:03.9]} 49... Kh6 {[%clk 0:00:05.5]} 50.
Qxg7+ {[%clk 0:00:04.8]} 50... Kxg7 {[%clk 0:00:06.4]} 51. Ne6+ {[%clk
0:00:05.7]} 51... Kf6 {[%clk 0:00:07]} 52. Nxc5 {[%clk 0:00:06.6]} 52... Ke5
{[%clk 0:00:07.9]} 53. Nb3 {[%clk 0:00:06.7]} 53... Kd6 {[%clk 0:00:07.9]} 54.
Nd4 {[%clk 0:00:07.3]} 54... Kc5 {[%clk 0:00:08.4]} 55. Ne6+ {[%clk 0:00:07.9]}
55... Kxc4 {[%clk 0:00:08.9]} 56. Nf4 {[%clk 0:00:08.6]} 56... g5 {[%clk
0:00:08.4]} 57. hxg5 {[%clk 0:00:08.6]} 1-0

[Event "*** SCC Grand Prix: Titled Tuesday Blitz"]
[Site "Chess.com"]
[Date "2020.10.06"]
[Round "8"]
[White "Durarbayli"]
[Black "tsvet2005"]
[Result "1-0"]
[WhiteElo "2813"]
[BlackElo "2680"]
[TimeControl "180+1"]
[EndTime "11:36:25 PDT"]
[Termination "Durarbayli won by resignation"]

1. e4 {[%clk 0:02:56.2]} 1... c5 {[%clk 0:03:00]} 2. b3 {[%clk 0:02:55.7]} 2...
g6 {[%clk 0:02:59.5]} 3. Bb2 {[%clk 0:02:54.1]} 3... Nf6 {[%clk 0:02:59.3]} 4.
Qf3 {[%clk 0:02:53.8]} 4... d6 {[%clk 0:02:55.1]} 5. Bb5+ {[%clk 0:02:53.7]}
5... Nbd7 {[%clk 0:02:48.6]} 6. Bxf6 {[%clk 0:02:54]} 6... exf6 {[%clk
0:02:49.5]} 7. Nc3 {[%clk 0:02:53.7]} 7... Bg7 {[%clk 0:02:49.8]} 8. Qg3 {[%clk
0:02:53.7]} 8... O-O {[%clk 0:02:21.1]} 9. Qxd6 {[%clk 0:02:49.6]} 9... Re8
{[%clk 0:02:21.4]} 10. Nge2 {[%clk 0:02:32.7]} 10... f5 {[%clk 0:02:00.9]} 11.
exf5 {[%clk 0:02:31]} 11... Ne5 {[%clk 0:01:18.7]} 12. Qxd8 {[%clk 0:02:28]}
12... Rxd8 {[%clk 0:01:19.6]} 13. fxg6 {[%clk 0:02:27.7]} 13... hxg6 {[%clk
0:01:18.6]} 14. Ng3 {[%clk 0:02:20.2]} 14... a6 {[%clk 0:01:14.5]} 15. Be2
{[%clk 0:02:20.2]} 15... b5 {[%clk 0:01:14.4]} 16. O-O-O {[%clk 0:02:17.7]}
16... Be6 {[%clk 0:01:08.3]} 17. h3 {[%clk 0:02:02.5]} 17... Rac8 {[%clk
0:01:04]} 18. f4 {[%clk 0:02:01.9]} 18... Nc6 {[%clk 0:01:04.2]} 19. Bg4 {[%clk
0:02:01.6]} 19... Bxg4 {[%clk 0:00:50.4]} 20. hxg4 {[%clk 0:02:01.2]} 20... c4
{[%clk 0:00:51.3]} 21. Kb1 {[%clk 0:01:44.8]} 21... Nd4 {[%clk 0:00:26.5]} 22.
Nge2 {[%clk 0:01:23.7]} 22... Ne6 {[%clk 0:00:23.1]} 23. f5 {[%clk 0:01:17.5]}
23... Nc5 {[%clk 0:00:23.3]} 24. b4 {[%clk 0:01:14.6]} 24... Nd7 {[%clk
0:00:19.9]} 25. fxg6 {[%clk 0:01:12]} 25... fxg6 {[%clk 0:00:20.8]} 26. Nf4
{[%clk 0:01:12.6]} 26... Ne5 {[%clk 0:00:20.9]} 27. g5 {[%clk 0:01:05.7]} 27...
a5 {[%clk 0:00:20.1]} 28. a3 {[%clk 0:01:03.1]} 28... axb4 {[%clk 0:00:20.6]}
29. axb4 {[%clk 0:01:04]} 29... Nc6 {[%clk 0:00:21.5]} 30. Nxg6 {[%clk 0:00:54]}
30... Ra8 {[%clk 0:00:22.1]} 31. Rhe1 {[%clk 0:00:39.3]} 31... Rxd2 {[%clk
0:00:20.5]} 32. Kb2 {[%clk 0:00:28.6]} 32... Rxd1 {[%clk 0:00:15.4]} 33. Rxd1
{[%clk 0:00:29.5]} 33... Nxb4 {[%clk 0:00:16.2]} 34. Ne7+ {[%clk 0:00:16.8]}
34... Kf7 {[%clk 0:00:12.6]} 35. Rd7 {[%clk 0:00:16.5]} 35... Ke6 {[%clk
0:00:07.3]} 36. Rb7 {[%clk 0:00:16.5]} 36... Ra2+ {[%clk 0:00:07.2]} 37. Kc1
{[%clk 0:00:13.3]} 37... Bxc3 {[%clk 0:00:07.8]} 38. Kd1 {[%clk 0:00:14.2]}
38... Ra1+ {[%clk 0:00:05.8]} 39. Ke2 {[%clk 0:00:14.4]} 39... Kd6 {[%clk
0:00:03.2]} 40. g6 {[%clk 0:00:12.9]} 40... Re1+ {[%clk 0:00:02.7]} 41. Kf3
{[%clk 0:00:10]} 41... Rxe7 {[%clk 0:00:03.6]} 42. Rxb5 {[%clk 0:00:09.8]} 42...
Re6 {[%clk 0:00:04]} 43. g7 {[%clk 0:00:09.5]} 43... Rg6 {[%clk 0:00:02.8]} 44.
Rb6+ {[%clk 0:00:09.4]} 44... Kc5 {[%clk 0:00:02.7]} 45. Rxg6 {[%clk 0:00:09]}
45... Bxg7 {[%clk 0:00:03]} 46. Rxg7 {[%clk 0:00:09.1]} 46... Nxc2 {[%clk
0:00:02.7]} 47. Ke4 {[%clk 0:00:08.4]} 47... Kb4 {[%clk 0:00:02.6]} 48. g4
{[%clk 0:00:08.6]} 48... Kc3 {[%clk 0:00:03]} 49. g5 {[%clk 0:00:08.9]} 49...
Nb4 {[%clk 0:00:02.3]} 50. g6 {[%clk 0:00:07.7]} 50... Nc6 {[%clk 0:00:02.6]}
51. Rd7 {[%clk 0:00:06.7]} 1-0

[Event "*** SCC Grand Prix: Titled Tuesday Blitz"]
[Site "Chess.com"]
[Date "2020.10.06"]
[Round "8"]
[White "Grandelicious"]
[Black "Sashadav97"]
[Result "1-0"]
[WhiteElo "2789"]
[BlackElo "2601"]
[TimeControl "180+1"]
[EndTime "11:36:26 PDT"]
[Termination "Grandelicious won on time"]

1. Nf3 {[%clk 0:03:00.9]} 1... d5 {[%clk 0:02:52]} 2. g3 {[%clk 0:02:58.7]} 2...
Nc6 {[%clk 0:02:51.5]} 3. d4 {[%clk 0:02:57.8]} 3... Bg4 {[%clk 0:02:51.9]} 4.
Nbd2 {[%clk 0:02:55.2]} 4... Qd7 {[%clk 0:02:42.1]} 5. h3 {[%clk 0:02:50.4]}
5... Bh5 {[%clk 0:02:32.3]} 6. c3 {[%clk 0:02:50.4]} 6... f6 {[%clk 0:02:17.9]}
7. b4 {[%clk 0:02:46.2]} 7... a6 {[%clk 0:02:06.5]} 8. e4 {[%clk 0:02:19]} 8...
e6 {[%clk 0:02:05.9]} 9. Bg2 {[%clk 0:02:16.3]} 9... Bd6 {[%clk 0:02:01.7]} 10.
O-O {[%clk 0:02:11.4]} 10... f5 {[%clk 0:01:46.8]} 11. exd5 {[%clk 0:02:02.8]}
11... exd5 {[%clk 0:01:47.7]} 12. Re1+ {[%clk 0:01:57.8]} 12... Nge7 {[%clk
0:01:46.4]} 13. Nb3 {[%clk 0:01:29.5]} 13... O-O {[%clk 0:01:43.9]} 14. Nc5
{[%clk 0:01:29.9]} 14... Bxc5 {[%clk 0:01:42.4]} 15. bxc5 {[%clk 0:01:30.8]}
15... Kh8 {[%clk 0:01:24.2]} 16. Qd3 {[%clk 0:01:13.9]} 16... Ng8 {[%clk
0:01:12.1]} 17. Bf4 {[%clk 0:01:06.4]} 17... Bxf3 {[%clk 0:01:00.6]} 18. Bxf3
{[%clk 0:01:06]} 18... Nf6 {[%clk 0:01:01.5]} 19. Bg2 {[%clk 0:01:02.4]} 19...
Ne4 {[%clk 0:01:00.9]} 20. f3 {[%clk 0:01:02.6]} 20... Nf6 {[%clk 0:00:59.2]}
21. Be5 {[%clk 0:00:55.2]} 21... Rae8 {[%clk 0:00:56.4]} 22. Kh2 {[%clk
0:00:36.2]} 22... Re7 {[%clk 0:00:52]} 23. c4 {[%clk 0:00:29.9]} 23... dxc4
{[%clk 0:00:46.8]} 24. Qxc4 {[%clk 0:00:30.8]} 24... Nxe5 {[%clk 0:00:44.3]} 25.
dxe5 {[%clk 0:00:28.8]} 25... Nd5 {[%clk 0:00:44]} 26. f4 {[%clk 0:00:26.7]}
26... c6 {[%clk 0:00:44.4]} 27. Rad1 {[%clk 0:00:25.1]} 27... Rd8 {[%clk
0:00:42.6]} 28. Rd4 {[%clk 0:00:23.1]} 28... Qe6 {[%clk 0:00:42.6]} 29. Red1
{[%clk 0:00:21.4]} 29... Red7 {[%clk 0:00:43]} 30. Qb3 {[%clk 0:00:19.9]} 30...
h6 {[%clk 0:00:41.4]} 31. Bf3 {[%clk 0:00:19]} 31... Kh7 {[%clk 0:00:41]} 32.
Qb2 {[%clk 0:00:10.1]} 32... g5 {[%clk 0:00:40.1]} 33. Qf2 {[%clk 0:00:06.7]}
33... gxf4 {[%clk 0:00:38.2]} 34. gxf4 {[%clk 0:00:07.6]} 34... Rg7 {[%clk
0:00:34.1]} 35. Qh4 {[%clk 0:00:05.1]} 35... Rdg8 {[%clk 0:00:33.4]} 36. R1d2
{[%clk 0:00:03.6]} 36... Qg6 {[%clk 0:00:29]} 37. Qf2 {[%clk 0:00:02.4]} 37...
Qe6 {[%clk 0:00:15]} 38. Rxd5 {[%clk 0:00:02.5]} 38... cxd5 {[%clk 0:00:12.5]}
39. Bxd5 {[%clk 0:00:03.4]} 39... Qg6 {[%clk 0:00:10.5]} 40. Bxg8+ {[%clk
0:00:04.3]} 40... Rxg8 {[%clk 0:00:11.4]} 41. Rd1 {[%clk 0:00:04.4]} 41... Qc6
{[%clk 0:00:10]} 42. Rg1 {[%clk 0:00:04.5]} 42... Rxg1 {[%clk 0:00:09.3]} 43.
Qxg1 {[%clk 0:00:05.4]} 43... Qf3 {[%clk 0:00:07.8]} 44. Qd4 {[%clk 0:00:04.7]}
44... Qe2+ {[%clk 0:00:07]} 45. Kg1 {[%clk 0:00:05]} 45... Qe1+ {[%clk
0:00:07.1]} 46. Kg2 {[%clk 0:00:05.6]} 46... Qe2+ {[%clk 0:00:07.7]} 47. Kg1
{[%clk 0:00:06.3]} 47... Qe1+ {[%clk 0:00:08.1]} 48. Kg2 {[%clk 0:00:07]} 48...
Qe2+ {[%clk 0:00:08.7]} 49. Qf2 {[%clk 0:00:07.7]} 49... Qe4+ {[%clk 0:00:07.4]}
50. Qf3 {[%clk 0:00:08.1]} 50... Qc2+ {[%clk 0:00:07.7]} 51. Kg3 {[%clk
0:00:08.7]} 51... Qxc5 {[%clk 0:00:08.2]} 52. Qxb7+ {[%clk 0:00:08.8]} 52... Kg8
{[%clk 0:00:07.7]} 53. Qb3+ {[%clk 0:00:08.8]} 53... Kg7 {[%clk 0:00:05.2]} 54.
Qb7+ {[%clk 0:00:09]} 54... Kh8 {[%clk 0:00:04.5]} 55. Qf3 {[%clk 0:00:09.3]}
55... Qg1+ {[%clk 0:00:03.5]} 56. Kh4 {[%clk 0:00:09.6]} 1-0